Cogmind - Beta 16.1 @@@ ROGUE MODE // 2026.06.20 @ 11:25:10 Player: Lazz Result: Destroyed by G-47 Trooper with Particle Gun Performance ------------- Evolutions (2) 1000 Regions Visited (4) 800 Robots Destroyed (27) 135 Value Destroyed (837) 837 Prototype IDs (3) 60 Alien Tech Used (0) 0 Bonus (208) 208 TOTAL SCORE: 3040 Bonus ------- Follower Combat Kills 208 Cogmind --------- Core Integrity 0/550 Matter 272/300 Energy 99/100 System Corruption 0% Temperature Cool (18) Movement Core (50) Location -8/Materials Parts ------- > --- POWER (1) -------- (None) > --- PROPULSION (3) --- (None) > --- UTILITY (5) ------ Improved Signal Interpreter > --- WEAPON (2) ------- (None) > --- INVENTORY (5) ---- Improved Heat Sink Large Matter Pod (150) Autogun Light Cannon Missile Launcher Peak State ------------ > --- POWER ------------ Light Angular Momentum Engine > --- PROPULSION ------- Light Treads Light Treads > --- UTILITY ---------- Advanced Heat Sink High-capacity Storage Unit Compact Battery Advanced Visual Processing Unit Light Armor Plating > --- WEAPON ----------- Advanced Beam Cannon Minigun > --- INVENTORY -------- Light Nuclear Core Makeshift Power Source Improved Heat Sink Improved Heat Sink Improved Heat Sink Large Matter Pod Improved Terrain Scanner Medium Laser Autogun Autogun Improved Assault Rifle Light Cannon Mining Laser [Rating: 29] Favorites ----------- Power Ion Engine Engine Ion Engine Power Core Light Nuclear Core Propulsion Light Treads Treads Light Treads Utility Improved Terrain Scanner Device Improved Terrain Scanner Storage Compact Battery Processor Advanced Visual Processing Unit Protection Light Armor Plating Weapon Medium Laser Energy Gun Medium Laser Energy Cannon Advanced Beam Cannon Ballistic Gun Minigun Build | -11 -10 -9 -9 -8 ------- Run | Yrd Mat Mat Min Mat Slots Evolved 4 | . . 2 . 2 Power . | . . . . . Propulsion 1 | . . . . 1 Utility 3 | . . 2 . 1 Weapon . | . . . . . Parts Attached 25 | 7 . 10 1 7 Power 3 | 1 . 1 . 1 Engine 2 | 1 . . . 1 Core 1 | . . 1 . . Reactor . | . . . . . Propulsion 3 | 2 . 1 . . Treads 3 | 2 . 1 . . Leg . | . . . . . Wheel . | . . . . . Hover . | . . . . . Flight . | . . . . . Utility 12 | 2 . 6 1 3 Device 4 | 1 . 1 . 2 Storage 5 | 1 . 3 1 . Processor 2 | . . 1 . 1 Hackware . | . . . . . Protection 1 | . . 1 . . Artifact . | . . . . . Weapon 7 | 2 . 2 . 3 Energy Gun 3 | 2 . 1 . . Energy Cannon 1 | . . 1 . . Ballistic Gun 3 | . . . . 3 Ballistic Cannon . | . . . . . Launcher . | . . . . . Special Weapon . | . . . . . Impact Weapon . | . . . . . Slashing Weapon . | . . . . . Piercing Weapon . | . . . . . Special Melee Weapon . | . . . . . Unidentified Prototypes 3 | . . 2 . 1 Parts Lost 13 | . . 1 . 12 Power 1 | . . . . 1 Propulsion 3 | . . . . 3 Utility 4 | . . 1 . 3 Weapon 5 | . . . . 5 Highest Loss Streak 10 | . . 1 . 10 To Critical Strikes . | . . . . . Average Backups 8 | 1 4 8 10 10 Power . | . . . . . Propulsion . | . 1 . 1 . Utility 1 | . . 1 3 3 Weapon 5 | . 3 5 6 6 Tool/Special . | . . . . . Unused Backups 11 | . . 2 . 9 Power 1 | . . . . 1 Propulsion 1 | . . 1 . . Utility 3 | . . . . 3 Weapon 6 | . . 1 . 5 Tool/Special . | . . . . . Average Slot Usage (%) 95 | . 98 97 100 79 Engine 6 | . 13 7 . 3 Core 4 | . . 3 11 4 Treads 22 | . 27 22 22 18 Device 10 | . 14 15 . 7 Storage 18 | . 14 20 22 15 Processor 5 | . . 3 11 8 Protection 4 | . . 1 11 7 Energy Gun 13 | . 27 11 11 4 Energy Cannon 8 | . . 10 11 7 Peak Build Rating 29 | 9 9 18 18 29 Average Rating 14 | 5 8 14 18 21 On Entrance 10 | . 9 9 18 18 Avg Prop Armor Cover (%) . | . . . . . Naked Turns 3 | . . . . 3 Heaviest Build 61 | 15 15 25 55 61 Greatest Support 60 | 40 40 40 40 60 Greatest Overweight (x) 3 | . . . 1 3 Average Overweight (x) . | . . . . . Largest Inventory Capacity 20 | 8 8 10 20 20 Average Capacity 11 | 6 8 8 18 18 Most Carried 14 | 3 6 10 10 14 Average Carried 8 | 1 4 8 10 10 Final Capacity 20 | 8 8 10 20 5 Final Carried 10 | 3 6 10 10 5 Class Distribution -------------------- 94% | Mutant 5% | Scavenger-Mutant Dominant Class ---------------- Mutant | -10/Materials Mutant | -9/Materials Mutant | -9/Mines Mutant | -8/Materials Resources | -11 -10 -9 -9 -8 ----------- Run | Yrd Mat Mat Min Mat Matter Collected 651 | 270 . 310 10 61 Remotely . | . . . . . Salvage Created 1172 | 139 . 811 . 222 Parts 51 | 11 . 32 . 8 Haulers Intercepted 2 | . . 2 . . Recyclers Shooed . | . . . . . Parts Field Recycled . | . . . . . Retrieved Matter . | . . . . . Parts Self-Destructed . | . . . . . Prevented . | . . . . . Parts Restored . | . . . . . Kills | -11 -10 -9 -9 -8 ------- Run | Yrd Mat Mat Min Mat Combat Hostiles Destroyed 17 | . . 13 . 4 Guns 3 | . . 2 . 1 Cannons 12 | . . 9 . 3 Classes Destroyed 10 | 3 . 7 . . Worker 1 | 1 . . . . Tunneler 2 | 2 . . . . Hauler 2 | . . 2 . . Recycler 2 | 1 . 1 . . Mechanic 1 | . . 1 . . Operator 1 | . . 1 . . Watcher 1 | . . 1 . . Swarmer 3 | . . 3 . . Grunt 10 | . . 6 . 4 Sentry 4 | . . 4 . . Best Kill Streak 5 | 3 . 5 . 2 Combat Bots Only 3 | . . 3 . 2 Max Kills in Single Turn 1 | 1 . 1 . 1 Gunslinging . | . . . . . Exploded . | . . . . . Melee . | . . . . . Uniques/NPCs Destroyed . | . . . . . Combat | -11 -10 -9 -9 -8 -------- Run | Yrd Mat Mat Min Mat Hostile Shots Fired 134 | . . 32 . 102 Missed 24 | . . 7 . 17 Hits 110 | . . 25 . 85 Melee 7 | . . . . 7 Projectile 103 | . . 25 . 78 Critical Strikes 6 | . . . . 6 Damage Taken 1837 | . . 306 . 1531 Core 617 | . . 67 . 550 Absorbed by Shields . | . . . . . Core Remaining (%) 94 | 100 100 . 83 . Volleys Fired 83 | 7 3 46 . 27 Largest 2 | 2 2 2 . 2 Hottest 118 | 100 100 118 . 118 Shots Fired 158 | 14 6 91 . 47 Gun 96 | 14 6 51 . 25 Cannon 62 | . . 40 . 22 Launcher . | . . . . . Special . | . . . . . Kinetic 18 | . . . . 18 Thermal 140 | 14 6 91 . 29 Explosive . | . . . . . Electromagnetic . | . . . . . Robot Hit Streak 20 | 4 . 7 . 20 Robot Miss Streak 4 | 1 . 4 . 1 Penetration Max . | . . . . . Secondary Targets . | . . . . . Shots Hit Robots 109 | 8 . 61 . 40 Core Hits 42 | 5 . 25 . 12 Critical Kills 2 | . . 2 . . Critical Parts Destroyed 1 | . . . . 1 Critical Strikes 8 | 2 . 4 . 2 Burn 5 | 2 . 2 . 1 Meltdown 2 | . . 2 . . Destroy 1 | . . . . 1 Melee Attacks . | . . . . . Impact . | . . . . . Slashing . | . . . . . Piercing . | . . . . . Sneak Attacks . | . . . . . Combat Hostiles . | . . . . . Follow-up Attacks . | . . . . . Damage Inflicted 1864 | 100 . 991 . 773 Guns 907 | 100 . 461 . 346 Cannons 937 | . . 530 . 407 Explosions . | . . . . . Melee . | . . . . . Ramming 20 | . . . . 20 Kinetic 258 | . . . . 258 Thermal 1586 | 100 . 991 . 495 Explosive . | . . . . . Electromagnetic . | . . . . . Impact . | . . . . . Slashing . | . . . . . Piercing . | . . . . . Highest Corruption . | . . . . . Average Corruption . | . . . . . Corruption Purged . | . . . . . Corruption Blocked . | . . . . . Overload Shots . | . . . . . Overflow Damage 4 | . . 4 . . Projectiles 4 | . . 4 . . Explosions . | . . . . . Melee . | . . . . . Knockbacks . | . . . . . Impact . | . . . . . Kinetic . | . . . . . Secondary . | . . . . . Self-Inflicted Damage 9 | . . . . 9 Shots . | . . . . . Rammed 4 | . . . . 4 Targets Rammed 4 | . . . . 4 Kicked . | . . . . . Crushed . | . . . . . Highest Temperature 399 | 117 117 399 . 167 Average Temperature 86 | 37 59 104 . 45 Received Heat Transfer 924 | . . 132 . 792 Siege Activations . | . . . . . Martial Activations . | . . . . . Shielding Activations . | . . . . . Robots Disrupted . | . . . . . Combat Hostiles . | . . . . . Robots Corrupted . | . . . . . Combat Hostiles . | . . . . . Parts Fried . | . . . . . Impact Corruptions . | . . . . . Robots Melted 2 | . . 2 . . Combat Hostiles 2 | . . 2 . . Parts Melted 9 | . . 8 . 1 Heat Transferred 3885 | 444 . 2405 . 1036 Parts Sabotaged . | . . . . . Parts Stolen . | . . . . . Parts Stripped . | . . . . . Power Chain Reactions . | . . . . . Alert | -11 -10 -9 -9 -8 ------- Run | Yrd Mat Mat Min Mat Maximum Alert Level . | . . . . . Low Security (%) 100 | 100 100 100 100 100 Level 1 . | . . . . . Level 2 . | . . . . . Level 3 . | . . . . . Level 4 . | . . . . . Level 5 . | . . . . . High Security . | . . . . . Max Security . | . . . . . Peak Influence 181 | 5 6 167 60 181 Initial 60 | . 3 . 60 . Average 34 | . . 49 9 75 Influence Increases 974 | 20 12 402 . 540 Destroy 0b10 Robot/C 460 | . . 260 . 200 Destroy 0b10 Robot/NC 55 | 20 . 30 . 5 Destroy Leader 116 | . . 76 . 40 Allied During Kill 32 | . . . . 32 Successful Hack 23 | . 12 4 . 7 Disable Machine 60 | . . 15 . 45 Anti-Garrison Action 150 | . . . . 150 Destroy Structure 3 | . . 2 . 1 Lose Combat Pursuer 75 | . . 15 . 60 Influence Decreases 863 | 15 17 247 155 429 Entered New Map 97 | . 2 . 95 . Time Decay 447 | 15 15 237 60 120 Lost Part 110 | . . 10 . 100 Lost Ally 52 | . . . . 52 Purge Threat 157 | . . . . 157 Squads Dispatched 6 | . 1 1 . 4 Investigation 2 | . . . . 2 Extermination . | . . . . . Reinforcement 2 | . 1 1 . . Assault 2 | . . . . 2 Garrison . | . . . . . Intercept . | . . . . . Searches Triggered . | . . . . . Construction Impeded . | . . . . . Haulers Reinforced . | . . . . . Active Scanning Responses . | . . . . . Cargo Convoy Interrupts . | . . . . . Stealth | -11 -10 -9 -9 -8 --------- Run | Yrd Mat Mat Min Mat Distress Signals 5 | . . 3 . 2 Communications Jammed . | . . . . . Distress Signals . | . . . . . Times Spotted 54 | . 1 23 . 30 Peak Tracking Total 11 | . 1 5 . 11 Tactical Retreats 2 | . . 1 . 1 Traps | -11 -10 -9 -9 -8 ------- Run | Yrd Mat Mat Min Mat Traps Triggered 3 | . 2 . . 1 Indirectly . | . . . . . Trap Hack Attempts . | . . . . . Triggered . | . . . . . Disarmed . | . . . . . Reprogrammed . | . . . . . Reused . | . . . . . Traps Extracted . | . . . . . Installed . | . . . . . Triggered . | . . . . . Machines | -11 -10 -9 -9 -8 ---------- Run | Yrd Mat Mat Min Mat Machines Disabled 5 | . . 1 . 4 Max in Single Turn 1 | . . 1 . 1 Garrison Access 1 | . . . . 1 Machines Repaired . | . . . . . Machines Dismantled . | . . . . . Machines Sabotaged . | . . . . . Overloaded Fab Kills . | . . . . . Hacking | -11 -10 -9 -9 -8 --------- Run | Yrd Mat Mat Min Mat Machines Accessed 7 | . 3 2 . 2 Terminals 6 | . 3 1 . 2 Fabricators . | . . . . . Repair Stations . | . . . . . Recycling Units . | . . . . . Scanalyzers 1 | . . 1 . . Garrison Access . | . . . . . Total Hacks 27 | . 13 6 . 8 Successful 10 | . 4 3 . 3 Failed 17 | . 9 3 . 5 Catastrophic 3 | . 1 1 . 1 Database Lockouts . | . . . . . Manual 11 | . 9 1 . 1 Terminals 24 | . 13 3 . 8 Fabricators . | . . . . . Repair Stations . | . . . . . Recycling Units . | . . . . . Scanalyzers 3 | . . 3 . . Garrison Access . | . . . . . Terminal Hacks 7 | . 4 . . 3 Robot Analysis 4 | . 3 . . 1 Unreport Threat 2 | . . . . 2 Zone Layout 1 | . 1 . . . Fabricator Hacks . | . . . . . Repair Station Hacks . | . . . . . Recycling Unit Hacks . | . . . . . Scanalyzer 3 | . . 3 . . Retrieve Study 3 | . . 3 . . Garrison Access Hacks . | . . . . . Unauthorized Hacks . | . . . . . Terminals . | . . . . . Fabricators . | . . . . . Repair Stations . | . . . . . Recycling Units . | . . . . . Scanalyzers . | . . . . . Garrison Access . | . . . . . Data Cores Recovered . | . . . . . Used . | . . . . . Hacking Detections 7 | . 3 2 . 2 Full Trace Events 1 | . . . . 1 Feedback Events . | . . . . . Feedback Blocked . | . . . . . Robot Schematics Acquired . | . . . . . Robots Built . | . . . . . Authchips . | . . . . . Time . | . . . . . Total Robot Build Rating . | . . . . . Part Schematics Acquired . | . . . . . Parts Built . | . . . . . Authchips . | . . . . . Time . | . . . . . Total Part Build Rating . | . . . . . Part Studies Acquired 3 | . . 3 . . Parts Repaired . | . . . . . Time . | . . . . . Parts Recycled . | . . . . . Recycled Matter . | . . . . . Retrieved Matter . | . . . . . Retrieved Components . | . . . . . Parts Scanalyzed . | . . . . . Part Schematics Acquired . | . . . . . Parts Damaged . | . . . . . Bothacking | -11 -10 -9 -9 -8 ------------ Run | Yrd Mat Mat Min Mat Used RIF Installer . | . . . . . Robots Hacked . | . . . . . Non-combat . | . . . . . Combat . | . . . . . Robot Hacks Applied . | . . . . . Relay Couplers Released 2 | . . . . 2 Machine Destruction 2 | . . . . 2 Fabnet Peak Effective % . | . . . . . Robots Rewired . | . . . . . Allies Hacked . | . . . . . Hacks Repelled . | . . . . . Allies | -11 -10 -9 -9 -8 -------- Run | Yrd Mat Mat Min Mat Total Allies 5 | . . . 5 . Largest Group 5 | . . . 5 5 Highest-Rated Group 83 | . . . 83 83 Highest-Rated Ally 31 | . . . 31 31 Total Orders . | . . . . . Ally Attacks 40 | . . . . 40 Total Damage 425 | . . . . 425 Kills 7 | . . . . 7 Allies Corrupted . | . . . . . Allies Melted . | . . . . . Intel | -11 -10 -9 -9 -8 ------- Run | Yrd Mat Mat Min Mat Active Infowar (turns) 2012 | 33 362 936 417 264 Optics 996 | . . 315 417 264 Terrain 1009 | 33 362 614 . . Seismic 689 | . . 689 . . Robot Analysis Total 4 | . 3 . . 1 Derelict Logs Recovered . | . . . . . Drone Launches . | . . . . . Drone Recoveries . | . . . . . Exploration | -11 -10 -9 -9 -8 ------------- Run | Yrd Mat Mat Min Mat Turns Passed 2132 | 117 362 936 417 300 Spaces Moved 989 | 54 208 384 191 152 Core 60 | 3 . . . 57 Treads 929 | 51 208 384 191 95 Legs . | . . . . . Wheels . | . . . . . Hover . | . . . . . Flight . | . . . . . Fastest Speed 50 | 50 160 160 160 50 Average Speed 161 | 153 160 160 190 131 Slowest Speed 280 | 160 160 160 200 280 Overloaded Moves . | . . . . . Propulsion Burnouts . | . . . . . Robots Hopped . | . . . . . Potential Cave-ins . | . . . . . Cave-ins Triggered . | . . . . . Exploration Rate (%) 28 | 3 34 30 53 21 Regions Visited 4 Branch Regions 1 Pre-discovered Areas . | . . . . . Known Exits Taken . | . . . . . Unknown Exits Taken 4 | 1 1 1 1 . Scrap Searched 1 | . . . 1 . Spaces Dug . | . . . . . Terrain Destroyed . | . . . . . Melee . | . . . . . Projectile . | . . . . . AOE . | . . . . . Terrain Rammed . | . . . . . Walls Destroyed . | . . . . . Machines Disabled . | . . . . . Actions | -11 -10 -9 -9 -8 --------- Run | Yrd Mat Mat Min Mat Total 1365 | 71 229 615 244 206 Wait 233 | 1 11 161 52 8 Move 985 | 53 207 383 190 152 Hop . | . . . . . Pick Up 17 | 3 3 5 . 6 Fast Attach 19 | 7 5 6 . 1 Attach 6 | . . 1 . 5 Detach 1 | . . 1 . . Swap 7 | . . 4 1 2 Drop 10 | . . 8 1 1 Fire 83 | 7 3 46 . 27 Melee . | . . . . . Ram 4 | . . . . 4 Kick . | . . . . . Crush . | . . . . . Escape Stasis . | . . . . . Rewire . | . . . . . Trap . | . . . . . Miscellaneous . | . . . . . Route ------- -11/Scrapyard -10/Materials -9/Materials -9/Mines -8/Materials History --------- Turn | Location | Event 6 | -11/Scrapyard | Discovered new exit (range 14) 118 | -11/Scrapyard | Entered Materials 231 | -10/Materials | Discovered new exit (range 9) 310 | -10/Materials | Build established: Mutant 480 | -10/Materials | Entered another Materials area 480 | -9/Materials | Evolved 2 slots: Utility x2 1401 | -9/Materials | Discovered new exit (range 10) 1416 | -9/Materials | Entered Mines 1509 | -9/Mines | Assisted by bots powering up and referring to "LRC-V3" 1807 | -9/Mines | Discovered new exit (range 12) 1833 | -9/Mines | Entered Materials 1833 | -8/Materials | Accompanied by 5 allies 1833 | -8/Materials | Evolved 2 slots: Propulsion x1, Utility x1 1838 | -8/Materials | Led the pair of lost Derelicts to an unsafe place 1989 | -8/Materials | Lost 3 allies 2096 | -8/Materials | Core integrity fell below 50% 2097 | -8/Materials | Released all parts (2) 2125 | -8/Materials | Core integrity fell below 20% 2128 | -8/Materials | Lost 10 parts (1p2n3u4w) 2133 | -8/Materials | Destroyed by G-47 Trooper with Particle Gun Last Messages --------------- 02096_ L-31 Rogue suffers critical hit (Destroy). 02096_ Destroyed Imp. Aluminum Leg. 02097_ Autogun+ destroyed. 02097_ Adv. Heat Sink destroyed. 02097_ Released Hcp. Storage Unit. 02097_ Released Adv. Visual Processing Unit. 02098_ R-06 Scavenger collects Lgt. Treads+. 02098_ K-01 Serf collects debris. 02100_ Acquired Imp. Signal Interpreter. 02101_ K-01 Serf collects debris. 02102_ R-06 Scavenger collects Lgt. Treads+. 02103_ K-01 Serf collects debris. 02110_ Dropped Imp. Heat Sink. 02111_ Acquired Missile Launcher. 02112_ Connecting with Terminal... 02112_ ALERT: Suspicious activity at Terminal M010. Dispatching Investigation squad. 02127_ Slammed into G-50 Soldier. 02128_ Slammed into G-47 Trooper. Map ----- +----------------------------------------------------+ | ?????????????????????????????????????????????????? | | ?????????????????????????????????????????????????? | | ?????????????????????????????????????????????????? | | ?????????????????????????????????????????????????? | | ?????????????????????????????????????????????????? | | ?????????????????????????????????????????????????? | | ?????????????????????????????????????????????????? | | ?????????????????????????????????????????????????? | | ??#??????????????????????????????????????????????? | | ? #??????????????????????????????????????????????? | | ? #??????????????????????????????????????????????? | | ? #??????????????????????????????????????????????? | | # #####??????????????????????????????????????????? | | #??????????????????????????????????????????? | | #??????????????????????????????????????????????? | | #??????????????????????????????????????????????? | | #??"???????????????????????????????????????????? | | #?""???????????????????????????????????????????? | | # "????????????????????????????????????????????? | | + ?????????????????????????????????????????????? | | #??????????????????????????????????????????????? | | #???????????????????????######?????????????????? | | #???????????????????????#!! #?????????????????? | | #???????????????????????#!! #?????????????????? | | #???????????????????#####! #?????????????????? | | +???????????????????# @# #?????????????????? | | #??????????????????## !g/ #?????????????????? | | %##+#??????????????? # # #?????????????????? | | # #?#######?????? ## ## #?????????????????? | | # ^ # T #????? ##g## #?????????????????? | | # # # """ ##g## = #?????????????????? | | + + !! # """"" ## #######?????????????????? | | #### # ![ ]# """"" ## #########???????????????? | | #??# # ! # """"" ## ????????? | | ?### ######### """ ## #########???????????????? | | ?# #???????? ??# #???????????????????????? | | ?#! ###########+##??# #???????????????????????? | | ?# T + # #### #???????????????????????? | | ?# ### + #???????????????????????? | | ?# #?# """ # ##+###???????????????????????? | | ?###+###?#* """ + # ????????????????????????? | | ?? ??# """ # # """ ??????????????????????? | | ?# " #?# # # """ #?????????????????????? | | ?# T #?######## # """ #?????????????????????? | | ?# " #????????# # #?????????????????????? | | ?# #????????# # #?????????????????????? | | ?# [[ #????????# #######??????????????????????? | | ?# [! [#????????+ #????????????????????????????? | | ?#######????????# #????????????????????????????? | | ????????????????# #????????????????????????????? | +----------------------------------------------------+ Best States ------------- Heat Dissipation 50 Energy Generation 18 Energy Capacity 400 Matter Stores 300 Matter Capacity 300 Sight Range 20 Terrain Scan Range 16 Terrain Scan Density 10 Armor Coverage 150 Evasion (%) 50 Recoil Reduction 3 Item Schematics ----------------- None Robot Schematics ------------------ None Fabricated ------------ Nothing Repaired ---------- Nothing Studied --------- Lgt. Treads | -9/Materials | Hacked Autogun | -9/Materials | Hacked Med. Laser | -9/Materials | Hacked Alien Tech Used ----------------- None Achievements -------------- None Challenges ------------ None Game ------ Seed InterceptZhirovMachine Manual? 0 Play Time 00:19:17 Cumulative 206.7 hours Start 2026.06.20 @ 11:07:25 End 2026.06.20 @ 11:25:10 Sessions 1 Manual Loads 0 Difficulty Rogue Special Mode None Game No. 286 Rogue 286 Adventurer 0 Explorer 0 Win Type - Total 2 Types 1/0/0/1/0/0/0/0/0/0 Lore% 73 Gallery% 62 Achievement% 49 Wizard Run 0 Options --------- Layout 2 ASCII 0 Keyboard 0 Movement Vi Keybinds 0 Fullscreen 1 Font 24/Smallcaps Map View 50x44 Zoom Use 0% Tactical HUD 1 Map Filters NONE Filters NONE Steam 1 RUN: 360b4cea-dfe8-4613-9309-f1761153399c